Cogmind - Beta 16 @@@ ROGUE MODE // 2025.12.23 @ 23:11:18 Player: rootmos Result: Destroyed by OA-JZ4(R) with Subdweller Machine Gun Performance ------------- Evolutions (0) 0 Regions Visited (3) 600 Robots Destroyed (16) 80 Value Destroyed (337) 337 Prototype IDs (0) 0 Alien Tech Used (0) 0 Bonus (91) 91 TOTAL SCORE: 1108 Bonus ------- Follower Combat Kills 141 Friendly Fire -50 Cogmind --------- Core Integrity 0/250 Matter 236/300 Energy 125/125 System Corruption 1% Temperature Cool (6) Movement Walking (120) Location -10/Subcaves Parts ------- > --- POWER (1) -------- Light Ion Engine > --- PROPULSION (2) --- Aluminum Leg Aluminum Leg > --- UTILITY (2) ------ Small Storage Unit Light Armor Plating > --- WEAPON (2) ------- Light Cannon Battle Cannon > --- INVENTORY (8) ---- Aluminum Leg Heat Sink Small Storage Unit Large Battery (200) Sensor Array Rocket Launcher Peak State ------------ > --- POWER ------------ Light Ion Engine > --- PROPULSION ------- Aluminum Leg Aluminum Leg > --- UTILITY ---------- Small Storage Unit Sensor Array > --- WEAPON ----------- Particle Gun Battle Cannon > --- INVENTORY -------- Aluminum Leg Heat Sink Small Storage Unit Large Battery Sensor Array Light Armor Plating Light Cannon Rocket Launcher [Rating: 9] Favorites ----------- Power Light Ion Engine Engine Light Ion Engine Propulsion Aluminum Leg Leg Aluminum Leg Utility Small Storage Unit Device Sensor Array Storage Small Storage Unit Protection Propulsion Shielding Weapon Light Cannon Energy Gun Particle Gun Ballistic Gun Light Assault Rifle Ballistic Cannon Light Cannon Launcher Rocket Launcher Special Weapon Mining Laser Build | -11 -10 -10 -10 ------- Run | Yrd Mat Min Sub Slots Evolved . | . . . . Power . | . . . . Propulsion . | . . . . Utility . | . . . . Weapon . | . . . . Parts Attached 29 | . 17 4 8 Power 5 | . 4 . 1 Engine 5 | . 4 . 1 Core . | . . . . Reactor . | . . . . Propulsion 10 | . 4 2 4 Treads . | . . . . Leg 10 | . 4 2 4 Wheel . | . . . . Hover . | . . . . Flight . | . . . . Utility 7 | . 5 1 1 Device 3 | . 3 . . Storage 1 | . . 1 . Processor . | . . . . Hackware . | . . . . Protection 3 | . 2 . 1 Artifact . | . . . . Weapon 7 | . 4 1 2 Energy Gun 2 | . 1 1 . Energy Cannon . | . . . . Ballistic Gun 1 | . 1 . . Ballistic Cannon 2 | . 1 . 1 Launcher 1 | . . . 1 Special Weapon 1 | . 1 . . Impact Weapon . | . . . . Slashing Weapon . | . . . . Piercing Weapon . | . . . . Special Melee Weapon . | . . . . Unidentified Prototypes . | . . . . Parts Lost 9 | . 6 . 3 Power 4 | . 3 . 1 Propulsion 1 | . 1 . . Utility 2 | . 1 . 1 Weapon 2 | . 1 . 1 Highest Loss Streak 2 | . 2 . 2 To Critical Strikes . | . . . . Average Backups 6 | . 5 7 7 Power . | . 1 1 . Propulsion 1 | . 2 1 1 Utility 3 | . 1 5 5 Weapon . | . . . 1 Tool/Special . | . . . . Unused Backups 15 | . 11 1 3 Power 2 | . 2 . . Propulsion 5 | . 5 . . Utility 6 | . 2 1 3 Weapon 2 | . 2 . . Tool/Special . | . . . . Average Slot Usage (%) 97 | . 94 100 99 Engine 13 | . 13 14 13 Leg 27 | . 27 28 28 Device 14 | . 12 17 13 Storage 10 | . 5 10 14 Protection 2 | . 5 . . Energy Gun 12 | . 15 5 13 Ballistic Gun 2 | . 7 . . Ballistic Cannon 10 | . 4 14 14 Special Weapon 2 | . . 8 . Peak Build Rating 9 | . 7 8 9 Average Rating 7 | . 6 7 8 On Entrance 6 | 6 6 7 8 Avg Prop Armor Cover (%) . | . . . . Naked Turns . | . . . . Heaviest Build 16 | 11 11 15 16 Greatest Support 20 | 20 20 20 20 Greatest Overweight (x) . | . . . . Average Overweight (x) . | . . . . Largest Inventory Capacity 8 | . 8 8 8 Average Capacity 7 | . 6 7 8 Most Carried 8 | . 7 8 8 Average Carried 6 | . 5 7 7 Final Capacity 8 | 8 5 8 8 Final Carried 8 | 6 5 8 6 Class Distribution -------------------- 56% | Mutant 43% | Scavenger-Mutant Dominant Class ---------------- Mutant | -10/Materials Mutant | -10/Mines Mutant | -10/Subcaves Resources | -11 -10 -10 -10 ----------- Run | Yrd Mat Min Sub Matter Collected 702 | 200 190 78 234 Remotely . | . . . . Salvage Created 329 | . 253 22 54 Parts 19 | . 15 1 3 Haulers Intercepted . | . . . . Recyclers Shooed . | . . . . Parts Field Recycled . | . . . . Retrieved Matter . | . . . . Parts Self-Destructed 5 | . . . 5 Prevented . | . . . . Parts Restored . | . . . . Kills | -11 -10 -10 -10 ------- Run | Yrd Mat Min Sub Combat Hostiles Destroyed 12 | . 10 . 2 Guns 11 | . 10 . 1 Cannons 1 | . . . 1 Classes Destroyed 7 | . 3 1 3 Worker 1 | . 1 . . Tunneler 1 | . . 1 . Turret 2 | . . . 2 Swarmer 7 | . 6 . 1 Grunt 4 | . 4 . . Subdweller 1 | . . . 1 Scientist 1 | . . . 1 Best Kill Streak 6 | . 6 1 1 Combat Bots Only 5 | . 5 . 1 Max Kills in Single Turn 1 | . 1 1 1 Gunslinging . | . . . . Exploded . | . . . . Melee . | . . . . Uniques/NPCs Destroyed . | . . . . Combat | -11 -10 -10 -10 -------- Run | Yrd Mat Min Sub Hostile Shots Fired 169 | . 93 . 76 Missed 47 | . 20 . 27 Hits 122 | . 73 . 49 Projectile 122 | . 73 . 49 Critical Strikes 5 | . 3 . 2 Actively Blocked 1 | . 1 . . Damage Taken 1406 | . 755 . 651 Core 259 | . 102 . 157 Absorbed by Shields . | . . . . Redirected to Shielding 25 | . 25 . . Core Remaining (%) 100 | 100 . . . Volleys Fired 63 | . 39 1 23 Largest 2 | . 2 2 2 Hottest 98 | . 80 95 98 Shots Fired 126 | . 77 3 46 Gun 92 | . 77 1 14 Cannon 28 | . . 2 26 Launcher 6 | . . . 6 Special . | . . . . Kinetic 58 | . 30 2 26 Thermal 56 | . 41 1 14 Explosive 6 | . . . 6 Electromagnetic 6 | . 6 . . Robot Hit Streak 8 | . 8 5 8 Robot Miss Streak 3 | . 3 . 3 Penetration Max . | . . . . Secondary Targets . | . . . . Shots Hit Robots 77 | . 48 1 28 Core Hits 29 | . 19 1 9 Critical Kills . | . . . . Critical Parts Destroyed . | . . . . Critical Strikes 1 | . . . 1 Blast 1 | . . . 1 Melee Attacks . | . . . . Impact . | . . . . Slashing . | . . . . Piercing . | . . . . Sneak Attacks . | . . . . Combat Hostiles . | . . . . Follow-up Attacks . | . . . . Damage Inflicted 1097 | . 531 20 546 Guns 638 | . 481 . 157 Cannons 314 | . . 20 294 Explosions 145 | . 50 . 95 Melee . | . . . . Ramming . | . . . . Kinetic 466 | . 152 20 294 Thermal 515 | . 358 . 157 Explosive 95 | . . . 95 Electromagnetic 21 | . 21 . . Impact . | . . . . Slashing . | . . . . Piercing . | . . . . Highest Corruption 1 | . 1 1 1 Average Corruption 1 | . 1 1 1 Corruption Purged . | . . . . Corruption Blocked . | . . . . Effects 13 | . . 3 10 Message Errors 4 | . . 1 3 Matter Fused 3 | . . . 3 Energy Discharges 1 | . . 1 . Data Loss (minor) 3 | . . . 3 Data Loss (major) 1 | . . . 1 Misfires 1 | . . 1 . Overload Shots . | . . . . Overflow Damage 4 | . 1 . 3 Projectiles 3 | . . . 3 Explosions 1 | . 1 . . Melee . | . . . . Knockbacks 3 | . . . 3 Impact . | . . . . Kinetic 3 | . . . 3 Secondary . | . . . . Self-Inflicted Damage 78 | . 38 . 40 Shots 2 | . 1 . 1 Rammed . | . . . . Targets Rammed . | . . . . Kicked . | . . . . Crushed . | . . . . Highest Temperature 54 | . 54 33 12 Average Temperature 16 | . 16 20 5 Received Heat Transfer 363 | . 189 . 174 Siege Activations . | . . . . Martial Activations . | . . . . Shielding Activations . | . . . . Robots Disrupted . | . . . . Combat Hostiles . | . . . . Robots Corrupted . | . . . . Combat Hostiles . | . . . . Parts Fried . | . . . . Impact Corruptions . | . . . . Robots Melted . | . . . . Combat Hostiles . | . . . . Parts Melted 1 | . 1 . . Heat Transferred 1220 | . 850 . 370 Parts Sabotaged . | . . . . Parts Stolen . | . . . . Parts Stripped . | . . . . Power Chain Reactions 1 | . 1 . . Alert | -11 -10 -10 -10 ------- Run | Yrd Mat Min Sub Maximum Alert Level . | . . . . Low Security (%) 100 | . 100 100 . Level 1 . | . . . . Level 2 . | . . . . Level 3 . | . . . . Level 4 . | . . . . Level 5 . | . . . . High Security . | . . . . Max Security . | . . . . Peak Influence 75 | . 75 58 . Initial . | . . . . Average 20 | . 27 8 . Influence Increases 604 | . 293 63 248 Destroy 0b10 Robot/C 360 | . 200 40 120 Destroy 0b10 Robot/NC 10 | . 5 5 . Destroy Leader 50 | . 40 10 . Allied During Kill 16 | . . 8 8 Successful Hack 15 | . 15 . . Disable Machine 15 | . 15 . . Destroy Structure 3 | . 3 . . Partial Spotted 15 | . 15 . . Lose Combat Pursuer 120 | . . . 120 Influence Decreases 528 | . 293 63 172 Time Decay 423 | . 248 63 112 Lost Part 65 | . 45 . 20 Lost Ally 40 | . . . 40 Squads Dispatched 1 | . 1 . . Investigation . | . . . . Extermination . | . . . . Reinforcement 1 | . 1 . . Assault . | . . . . Garrison . | . . . . Intercept . | . . . . Searches Triggered . | . . . . Construction Impeded . | . . . . Haulers Reinforced . | . . . . Active Scanning Responses . | . . . . Cargo Convoy Interrupts . | . . . . Stealth | -11 -10 -10 -10 --------- Run | Yrd Mat Min Sub Distress Signals 2 | . 2 . . Communications Jammed . | . . . . Distress Signals . | . . . . Times Spotted 33 | . 15 2 16 Peak Tracking Total 6 | . 5 2 6 Tactical Retreats 4 | . . . 4 Traps | -11 -10 -10 -10 ------- Run | Yrd Mat Min Sub Traps Triggered 4 | . 2 . 2 Indirectly . | . . . . Trap Hack Attempts . | . . . . Triggered . | . . . . Disarmed . | . . . . Reprogrammed . | . . . . Reused . | . . . . Traps Extracted . | . . . . Installed . | . . . . Triggered . | . . . . Machines | -11 -10 -10 -10 ---------- Run | Yrd Mat Min Sub Machines Disabled 4 | . 1 . 3 Max in Single Turn 1 | . 1 . 1 Machines Repaired . | . . . . Machines Dismantled . | . . . . Machines Sabotaged . | . . . . Overloaded Fab Kills . | . . . . Hacking | -11 -10 -10 -10 --------- Run | Yrd Mat Min Sub Machines Accessed 6 | . 5 . 1 Terminals 5 | . 5 . . Fabricators . | . . . . Repair Stations . | . . . . Recycling Units . | . . . . Scanalyzers . | . . . . Garrison Access . | . . . . Total Hacks 17 | . 13 . 4 Successful 10 | . 6 . 4 Failed 7 | . 7 . . Catastrophic 2 | . 2 . . Database Lockouts . | . . . . Manual 5 | . 5 . . Terminals 13 | . 13 . . Fabricators . | . . . . Repair Stations . | . . . . Recycling Units . | . . . . Scanalyzers . | . . . . Garrison Access . | . . . . Terminal Hacks 10 | . 6 . 4 Record 8 | . 4 . 4 Emergency Access Points 1 | . 1 . . Locate Traps 1 | . 1 . . Fabricator Hacks . | . . . . Repair Station Hacks . | . . . . Recycling Unit Hacks . | . . . . Scanalyzer . | . . . . Garrison Access Hacks . | . . . . Unauthorized Hacks . | . . . . Terminals . | . . . . Fabricators . | . . . . Repair Stations . | . . . . Recycling Units . | . . . . Scanalyzers . | . . . . Garrison Access . | . . . . Data Cores Recovered . | . . . . Used . | . . . . Hacking Detections 3 | . 3 . . Full Trace Events 1 | . 1 . . Feedback Events . | . . . . Feedback Blocked . | . . . . Robot Schematics Acquired . | . . . . Robots Built . | . . . . Authchips . | . . . . Time . | . . . . Total Robot Build Rating . | . . . . Part Schematics Acquired . | . . . . Parts Built . | . . . . Authchips . | . . . . Time . | . . . . Total Part Build Rating . | . . . . Part Studies Acquired . | . . . . Parts Repaired . | . . . . Time . | . . . . Parts Recycled . | . . . . Recycled Matter . | . . . . Retrieved Matter . | . . . . Retrieved Components . | . . . . Parts Scanalyzed . | . . . . Part Schematics Acquired . | . . . . Parts Damaged . | . . . . Bothacking | -11 -10 -10 -10 ------------ Run | Yrd Mat Min Sub Used RIF Installer . | . . . . Robots Hacked . | . . . . Non-combat . | . . . . Combat . | . . . . Robot Hacks Applied . | . . . . Relay Couplers Released . | . . . . Fabnet Peak Effective % . | . . . . Robots Rewired . | . . . . Allies Hacked . | . . . . Hacks Repelled . | . . . . Allies | -11 -10 -10 -10 -------- Run | Yrd Mat Min Sub Total Allies 3 | . . 3 . Largest Group 3 | . . 3 3 Highest-Rated Group 40 | . . 40 40 Highest-Rated Ally 16 | . . 16 16 Total Orders . | . . . . Ally Attacks 40 | . . 12 28 Total Damage 367 | . . 139 228 Kills 7 | . . 2 5 Allies Corrupted . | . . . . Allies Melted . | . . . . Intel | -11 -10 -10 -10 ------- Run | Yrd Mat Min Sub Active Infowar (turns) 1223 | . 131 418 674 Sensors 1223 | . 131 418 674 Robot Analysis Total . | . . . . Derelict Logs Recovered 4 | . . 2 2 Drone Launches . | . . . . Drone Recoveries . | . . . . Exploration | -11 -10 -10 -10 ------------- Run | Yrd Mat Min Sub Turns Passed 1799 | . 699 418 682 Spaces Moved 1208 | 1 447 304 456 Core . | . . . . Treads . | . . . . Legs 1208 | 1 447 304 456 Wheels . | . . . . Hover . | . . . . Flight . | . . . . Fastest Speed 120 | 120 120 120 120 Average Speed 120 | 120 120 120 120 Slowest Speed 120 | 120 120 120 120 Overloaded Moves . | . . . . Propulsion Burnouts . | . . . . Robots Hopped . | . . . . Potential Cave-ins . | . . . . Cave-ins Triggered . | . . . . Exploration Rate (%) 39 | 2 68 59 28 Regions Visited 3 Branch Regions 2 Pre-discovered Areas . | . . . . Known Exits Taken 1 | . . 1 . Unknown Exits Taken 2 | 1 1 . . Scrap Searched 4 | . . 2 2 Spaces Dug . | . . . . Terrain Destroyed 35 | . 2 . 33 Melee . | . . . . Projectile 2 | . . . 2 AOE 33 | . 2 . 31 Terrain Rammed . | . . . . Walls Destroyed . | . . . . Machines Disabled . | . . . . Actions | -11 -10 -10 -10 --------- Run | Yrd Mat Min Sub Total 1438 | . 539 355 544 Wait 101 | . 15 40 46 Move 1205 | . 446 303 456 Hop . | . . . . Pick Up 12 | . 8 4 . Fast Attach 2 | . 2 . . Attach 8 | . 5 . 3 Detach . | . . . . Swap 25 | . 14 4 7 Drop 17 | . 10 3 4 Fire 63 | . 39 1 23 Melee . | . . . . Ram . | . . . . Kick . | . . . . Crush . | . . . . Escape Stasis . | . . . . Rewire 5 | . . . 5 Trap . | . . . . Miscellaneous . | . . . . Route ------- -11/Scrapyard -10/Materials (discovered 3 exits: [*Mat] / [*Min x2]) -10/Mines (discovered 2 exits: [*Mat] / *Sub) -10/Subcaves (discovered 3 exits: Mat x2 / *Rec) History --------- Turn | Location | Event 1 | -11/Scrapyard | Discovered new exit (range 0) 1 | -11/Scrapyard | Entered Materials 225 | -10/Materials | Discovered new exit (range 6) 509 | -10/Materials | Discovered new exit (range 14) 591 | -10/Materials | Discovered new exit (range 6) 700 | -10/Materials | Entered Mines 813 | -10/Mines | Build established: Mutant 872 | -10/Mines | Assisted by bots powering up and referring to "LRC-V3" 974 | -10/Mines | Identified exit to Subcaves 1065 | -10/Mines | Received a Rocket Launcher from a helpful Derelict 1102 | -10/Mines | Discovered new exit (range 8) 1118 | -10/Mines | Entered Subcaves 1118 | -10/Subcaves | Accompanied by 3 allies 1119 | -10/Subcaves | Approached by a straggling Scientist 1241 | -10/Subcaves | Build established: Scavenger-Mutant 1359 | -10/Subcaves | Visited Clippyterm 1363 | -10/Subcaves | Identified exit to Recycling 1363 | -10/Subcaves | Identified exit to Materials 1577 | -10/Subcaves | Core integrity fell below 50% 1607 | -10/Subcaves | Lost 3 allies 1723 | -10/Subcaves | Learned Materials stockpile data 1725 | -10/Subcaves | Learned Materials garrison access intel 1743 | -10/Subcaves | Build established: Mutant 1788 | -10/Subcaves | A Subdweller sparked back to life 1788 | -10/Subcaves | A Subdweller sparked back to life 1788 | -10/Subcaves | A Subdweller sparked back to life 1791 | -10/Subcaves | Core integrity fell below 20% 1800 | -10/Subcaves | Destroyed by OA-JZ4(R) with Subdweller Machine Gun Last Messages --------------- 01741_ Critical hit (Impale). 01742_ System corrupted: Substantial component data lost. 01784_ Attempting to rewire YF-7QI(R). 01784_ YF-7QI(R) is broken beyond repair. 01785_ Attempting to rewire YF-7QI(R). 01785_ YF-7QI(R) is broken beyond repair. 01786_ Attempting to rewire YF-7QI(R). 01786_ YF-7QI(R) is broken beyond repair. 01788_ IY-I8C(R) creaks and sparks as it begins to move. 01788_ YF-7QI(R) creaks and sparks as it begins to move. 01788_ OA-JZ4(R) creaks and sparks as it begins to move. 01790_ Particle Gun destroyed. 01791_ IY-I8C(R) knocked back. 01792_ Sensor Array destroyed. 01794_ IY-I8C(R) affixes Scrap Shield Fragment to Scrap Shield. 01796_ YF-7QI(R) destroyed. 01798_ System corrupted: Matter fused (-9). 01799_ IY-I8C(R) affixes Scrap Shield Fragment to Scrap Shield. Map ----- +----------------------------------------------------+ | ???????????????????????????## # # ##???? | | ???????????????????????????# #### ##????? | | ???????????????????????????## #??## #?????? | | ???????????????????????????# ##???# #????? | | ???????????????????????????# #?## ### ##????? | | ???????????????????????????# ### ##? #????? | | ???????????????????????????## # ^#? #????? | | ???????????????????????????# ####? #????? | | ???????????????????????????## %###????? #????? | | ????????????????????????????# ####??????? ? ????? | | ???????????????????????????## #????????????????? | | ???????????????????????????# #????????????????? | | ???????????????????????????## ##????????????????? | | ??????????????????????????## ##????????????????? | | ?????????????????????????## #????????????????? | | ?????????????????????????# #####?????????????? | | ?????????????????????????## ### ##????????????? | | ?????????????????????????## #????#####???? | | ?????????????????????????# ##????# ##?## | | ?????????????????????????# #?????# ## | | ?????????????????????????## #?????# | | ??????????????????######## ####### | | ??????????????????< &% ## ## | | ??????????????????#<< % ## #??? | | ??????????????????# % ### #### | | ??????????????????< R%*@ ###### ## # | | ??????????????????## # # #??????????##"[#??? | | ?????????## # #???????????## #??? | | ??????????# # ####???????????## #??? | | ??????????# ### ######??????????????# ##??? | | ??????????# ##?## ##?????????????????# ##??? | | ??????????## ###??# #?????????????????##"###? | | ???????????## #?# ## ##??????????????????## #? | +----------------------------------------------------+ Best States ------------- Heat Dissipation 35 Energy Generation 10 Energy Capacity 125 Matter Stores 300 Matter Capacity 300 Sight Range 16 Robot Scan Range 14 Terrain Scan Density 10 Armor Coverage 150 Propulsion Shielding 33 Evasion (%) 55 Item Schematics ----------------- None Robot Schematics ------------------ None Fabricated ------------ Nothing Repaired ---------- Nothing Studied --------- None Alien Tech Used ----------------- None Achievements -------------- None Challenges ------------ None Game ------ Seed FlakHypercooledInverter Manual? 0 Play Time 00:26:12 Cumulative 93.9 hours Start 2025.12.23 @ 06:03:35 End 2025.12.23 @ 23:11:18 Sessions 2 Manual Loads 0 Difficulty Rogue Special Mode None Game No. 39 Rogue 4 Adventurer 0 Explorer 35 Win Type - Total 1 Types 1/0/0/0/0/0/0/0/0/0 Lore% 29 Gallery% 34 Achievement% 27 Wizard Run 0 Options --------- Layout 2 ASCII 1 Keyboard 1 Movement Vi Keybinds 1 Fullscreen 0 Font 20/SmallcapsGlow Map View 64x51 Zoom Use 0% Tactical HUD 1 Map Filters NONE Filters NONE Steam 0 RUN: 9b6d0d29-ba96-4e3a-a50e-a733431a49cc